fUSD/lending_fUSD_20250101
["ID","MTS","AMOUNT","RATE_DAILY","PERIOD"]
[347382269,1735749036588,-1610.81,0.00010958,2]
[347382270,1735749036598,-500.0,0.00010958,2]
[347382271,1735749036607,-500.0,0.00010958,2]
[347382272,1735749036617,-500.0,0.00010958,2]
[347382273,1735749036627,-2197.23,0.00010958,2]
[347382274,1735749036637,-1654.71,0.00010958,2]
[347382275,1735749036647,-500.0,0.00010958,2]
[347382276,1735749036656,-500.0,0.00010958,2]
[347382277,1735749036666,-558.6,0.00010958,2]
[347382278,1735749036675,-1110.14,0.00010958,2]
[347382279,1735749036685,-1729.59,0.00010958,2]
[347382280,1735749036695,-500.0,0.00010958,2]
[347382281,1735749036705,-1117.17,0.00010958,2]
[347382282,1735749036715,-500.0,0.00010958,2]
[347382283,1735749036725,-500.0,0.00010958,2]
[347382284,1735749036734,-500.0,0.00010958,2]
[347382285,1735749036743,-500.0,0.00010958,2]
[347382286,1735749036753,-702.09,0.00010958,2]
[347382287,1735749036762,-500.0,0.00010958,2]
[347382288,1735749036772,-500.0,0.00010958,2]
[347382289,1735749036781,-500.0,0.00010958,2]
[347382290,1735749036791,-1217.75,0.00010958,2]
[347382291,1735749036800,-913.25,0.00010958,2]
[347382292,1735749036810,-2078.59,0.00010958,2]
[347382293,1735749036820,-500.0,0.00010958,2]
[347382294,1735749036829,-1057.9,0.00010958,2]
[347382295,1735749036839,-500.0,0.00010958,2]
[347382296,1735749036848,-500.0,0.00010958,2]
[347382297,1735749036857,-501.77731727,0.00010958,2]
[347382298,1735749036867,-500.0,0.00010958,2]
[347382299,1735749036876,-2375.49,0.00010958,2]
[347382300,1735749036887,-500.0,0.00010958,2]
[347382301,1735749036896,-500.0,0.00010958,2]
[347382302,1735749036906,-1951.69,0.00010958,2]
[347382303,1735749036915,-1297.48,0.00010958,2]
[347382304,1735749036925,-862.89,0.00010958,2]
[347382305,1735749036934,-500.0,0.00010958,2]
[347382306,1735749036944,-1262.25,0.00010958,2]
[347382307,1735749036954,-500.0,0.00010958,2]
[347382308,1735749036964,-500.0,0.00010958,2]
[347382309,1735749036973,-680.82,0.00010958,2]
[347382310,1735749036983,-1079.57,0.00010958,2]
[347382311,1735749036993,-500.0,0.00010958,2]
[347382312,1735749037003,-985.54,0.00010958,2]
[347382313,1735749037012,-1570.72,0.00010958,2]
[347382314,1735749037022,-2880.18,0.00010958,2]
[347382315,1735749037032,-500.0,0.00010958,2]
[347382316,1735749037041,-500.0,0.00010958,2]
[347382317,1735749037052,-500.0,0.00010958,2]
[347382318,1735749037062,-500.0,0.00010958,2]
[347382319,1735749037073,-573.64192699,0.00010958,2]
[347382320,1735749037083,-1010.28,0.00010958,2]
[347382321,1735749037094,-1234.68,0.00010958,2]
[347382322,1735749037105,-1341.66,0.00010958,2]
[347382323,1735749037114,-2142.4,0.00010958,2]
[347382324,1735749037124,-565.15,0.00010958,2]
[347382325,1735749037134,-500.0,0.00010958,2]
[347382326,1735749037146,-500.0,0.00010958,2]
[347382327,1735749037156,-1922.7,0.00010958,2]
[347382328,1735749037165,-500.0,0.00010958,2]
[347382329,1735749037175,-500.0,0.00010958,2]
[347382330,1735749037184,-1171.93,0.00010958,2]
[347382331,1735749037193,-320.84383458,0.00010958,2]
[347382332,1735749037202,-500.0,0.00010958,2]
[347382333,1735749037212,-500.0,0.00010958,2]
[347382334,1735749037221,-500.0,0.00010958,2]
[347382335,1735749037231,-2005.34,0.00010958,2]
[347382336,1735749037240,-500.0,0.00010958,2]
[347382337,1735749037250,-500.0,0.00010958,2]
[347382338,1735749037259,-500.0,0.00010958,2]
[347382339,1735749037268,-500.0,0.00010958,2]
[347382340,1735749037277,-500.0,0.00010958,2]
[347382341,1735749037286,-500.0,0.00010958,2]
[347382342,1735749037296,-736.51,0.00010958,2]
[347382343,1735749037305,-604.69,0.00010958,2]
[347382344,1735749037315,-500.0,0.00010958,2]
[347382345,1735749037325,-1290.48,0.00010958,2]
[347382346,1735749037334,-1633.01,0.00010958,2]
[347382347,1735749037344,-500.0,0.00010958,2]
[347382348,1735749037354,-2233.88,0.00010958,2]
[347382349,1735749037363,-500.0,0.00010958,2]
[347382350,1735749037372,-500.0,0.00010958,2]
[347382351,1735749037382,-500.0,0.00010958,2]
[347382352,1735749037393,-500.0,0.00010958,2]
[347382353,1735749037403,-500.0,0.00010958,2]
[347382354,1735749037413,-286.40985432,0.00010958,2]
[347382355,1735749037422,-1850.91,0.00010958,2]
[347382356,1735749037432,-500.0,0.00010958,2]
[347382357,1735749037441,-1546.86,0.00010958,2]
[347382358,1735749037451,-1546.86,0.00010958,2]
[347382359,1735749037460,-1473.74,0.00010958,2]
[347382360,1735749037469,-889.919057,0.00010958,2]
[347382361,1735749037478,-500.0,0.00010958,2]
[347382362,1735749037488,-568.68,0.00010958,2]
[347382363,1735749037497,-2276.52,0.00010958,2]
[347382364,1735749037507,-500.0,0.00010958,2]
[347382365,1735749037516,-500.0,0.00010958,2]
[347382367,1735749037525,-500.0,0.00010958,2]
[347382368,1735749037535,-1108.27,0.00010958,2]
[347382369,1735749037544,-500.0,0.00010958,2]
[347382370,1735749037554,-155.490194,0.00010958,2]
[347382371,1735749037563,-2097.55,0.00010958,2]
[347382372,1735749037572,-500.0,0.00010958,2]
[347382373,1735749037582,-500.0,0.00010958,2]
[347382374,1735749037591,-627.13,0.00010958,2]
[347382375,1735749037600,-495.72300944,0.00010958,2]
[347382376,1735749037609,-500.0,0.00010958,2]
[347382377,1735749037618,-500.0,0.00010958,2]
[347382378,1735749037627,-2474.12,0.00010958,2]
[347382379,1735749037638,-1721.61,0.00010958,2]
[347382380,1735749037647,-3216.26,0.00010958,2]
[347382381,1735749037656,-500.0,0.00010958,2]
[347382382,1735749037665,-3174.77,0.00010958,2]
[347382383,1735749037675,-3174.77,0.00010958,2]
[347382384,1735749037684,-500.0,0.00010958,2]
[347382385,1735749037693,-500.0,0.00010958,2]
[347382386,1735749037702,-1156.02,0.00010958,2]
[347382387,1735749037711,-1275.07,0.00010958,2]
[347382388,1735749037720,-1262.36,0.00010958,2]
[347382389,1735749037730,-3583.08,0.00010958,2]
[347382390,1735749037739,-500.0,0.00010958,2]
[347382391,1735749037748,-500.0,0.00010958,2]
[347382392,1735749037757,-500.0,0.00010958,2]
[347382393,1735749037767,-612.05,0.00010958,2]
[347382394,1735749037776,-766.56,0.00010958,2]
[347382395,1735749037790,-1296.97,0.00010958,2]
[347382396,1735749037800,-931.83,0.00010958,2]
[347382397,1735749037810,-287.73608368,0.00010958,2]
[347382398,1735749037819,-1505.88,0.00010958,2]
[347382399,1735749037830,-1704.67,0.00010958,2]
[347382400,1735749037840,-598.88,0.00010958,2]
[347382401,1735749037850,-1090.0,0.00010958,2]
[347382402,1735749037860,-931.34,0.00010958,2]
[347382403,1735749037870,-1244.518597,0.00010958,2]
[347382404,1735749037879,-500.0,0.00010958,2]
[347382405,1735749037892,-918.0,0.00010958,2]
[347382406,1735749037902,-409.22747123,0.00010958,2]
[347382407,1735749037912,-918.0,0.00010958,2]
[347382408,1735749037922,-918.0,0.00010958,2]
[347382409,1735749037931,-918.0,0.00010958,2]
[347382410,1735749037941,-918.0,0.00010958,2]
[347382411,1735749037951,-918.0,0.00010958,2]
[347382420,1735749038103,-918.0,0.00010958,2]
[347382423,1735749038112,-918.0,0.00010958,2]
[347382426,1735749038121,-500.0,0.00010958,2]
[347382429,1735749038130,-500.0,0.00010958,2]
[347382432,1735749038141,-918.0,0.00010958,2]
[347382434,1735749038150,-918.0,0.00010958,2]
[347382436,1735749038160,-918.0,0.00010958,2]
[347382438,1735749038176,-918.0,0.00010958,2]
[347382440,1735749038186,-918.0,0.00010958,2]
[347382443,1735749038195,-918.0,0.00010958,2]
[347382446,1735749038203,-918.0,0.00010958,2]
[347382449,1735749038212,-918.0,0.00010958,2]
[347382451,1735749038221,-500.0,0.00010958,2]
[347382454,1735749038230,-918.0,0.00010958,2]
[347382458,1735749038241,-918.0,0.00010958,2]
[347382461,1735749038250,-918.0,0.00010958,2]
[347382463,1735749038259,-503.40308791,0.00010958,2]
[347382465,1735749038268,-918.0,0.00010958,2]
[347382468,1735749038277,-918.0,0.00010958,2]
[347382471,1735749038286,-918.0,0.00010958,2]
[347382474,1735749038296,-918.0,0.00010958,2]
[347382477,1735749038305,-652.82,0.00010958,2]
[347382480,1735749038314,-500.0,0.00010958,2]
[347382483,1735749038323,-500.0,0.00010958,2]
[347382486,1735749038332,-2445.06,0.00010958,2]
[347382489,1735749038341,-500.0,0.00010958,2]
[347382491,1735749038351,-3621.93,0.00010958,2]
[347382493,1735749038360,-3274.92,0.00010958,2]
[347382495,1735749038369,-2130.59,0.00010958,2]
[347382497,1735749038378,-3668.84,0.00010958,2]
[347382499,1735749038389,-666.83,0.00010958,2]
[347382501,1735749038398,-728.26,0.00010958,2]
[347382503,1735749038407,-500.0,0.00010958,2]
[347382505,1735749038415,-500.0,0.00010958,2]
[347382507,1735749038424,-1272.05,0.00010958,2]
[347382509,1735749038433,-6790.3,0.00010958,2]
[347382511,1735749038443,-3598.29,0.00010958,2]
[347382513,1735749038452,-500.0,0.00010958,2]
[347382515,1735749038461,-1699.08,0.00010958,2]
[347382517,1735749038470,-594.45,0.00010958,2]
[347382519,1735749038479,-8903.46,0.00010958,2]
[347382521,1735749038487,-500.0,0.00010958,2]
[347382523,1735749038496,-660.66,0.00010958,2]
[347382525,1735749038505,-500.0,0.00010958,2]
[347382527,1735749038514,-500.0,0.00010958,2]
[347382529,1735749038523,-500.0,0.00010958,2]
[347382531,1735749038532,-500.0,0.00010958,2]
[347382533,1735749038541,-500.0,0.00010958,2]
[347382535,1735749038550,-500.0,0.00010958,2]
[347382537,1735749038559,-155.490194,0.00010958,2]
[347382539,1735749038568,-1287.75,0.00010958,2]
[347382541,1735749038577,-694.03,0.00010958,2]
[347382542,1735749038586,-1227.92,0.00010958,2]
[347382544,1735749038596,-1283.08,0.00010958,2]
[347382546,1735749038605,-1142.04,0.00010958,2]
[347382548,1735749038613,-500.0,0.00010958,2]
[347382550,1735749038622,-500.0,0.00010958,2]
[347382552,1735749038632,-535.16,0.00010958,2]
[347382554,1735749038646,-500.0,0.00010958,2]
[347382556,1735749038656,-594.73682738,0.00010958,2]
[347382558,1735749038666,-1513.85,0.00010958,2]
[347382560,1735749038675,-1497.54,0.00010958,2]
[347382562,1735749038684,-1186.43,0.00010958,2]
[347382564,1735749038694,-500.0,0.00010958,2]
[347382566,1735749038703,-3543.6,0.00010958,2]
[347382568,1735749038712,-500.0,0.00010958,2]
[347382570,1735749038722,-4018.81,0.00010958,2]
[347382572,1735749038731,-853.2,0.00010958,2]
[347382574,1735749038740,-618.68,0.00010958,2]
[347382576,1735749038749,-500.0,0.00010958,2]
[347382578,1735749038759,-1883.54,0.00010958,2]
[347382580,1735749038769,-500.0,0.00010958,2]
[347382582,1735749038778,-500.0,0.00010958,2]
[347382584,1735749038788,-500.0,0.00010958,2]
[347382586,1735749038797,-1980.55,0.00010958,2]
[347382588,1735749038806,-1298.31,0.00010958,2]
[347382590,1735749038815,-2298.53,0.00010958,2]
[347382592,1735749038824,-169.588348,0.00010958,2]
[347382594,1735749038834,-1426.81,0.00010958,2]
[347382596,1735749038843,-1784.83,0.00010958,2]
[347382598,1735749038853,-500.0,0.00010958,2]
[347382600,1735749038862,-6411.92,0.00010958,2]
[347382603,1735749038873,-500.0,0.00010958,2]
[347382604,1735749038882,-500.0,0.00010958,2]
[347382606,1735749038896,-2077.33,0.00010958,2]
[347382608,1735749038906,-500.0,0.00010958,2]
[347382610,1735749038915,-500.0,0.00010958,2]
[347382612,1735749038924,-1531.16,0.00010958,2]
[347382614,1735749038933,-1850.25,0.00010958,2]
[347382616,1735749038943,-631.62386648,0.00010958,2]
[347382618,1735749038951,-796.06,0.00010958,2]
[347382620,1735749038961,-3813.02,0.00010958,2]
[347382622,1735749038969,-656.26,0.00010958,2]
[347382624,1735749038979,-607.28,0.00010958,2]
[347382626,1735749038988,-1991.63,0.00010958,2]
[347382628,1735749038997,-500.0,0.00010958,2]
[347382630,1735749039006,-14073.98,0.00010958,2]
[347382632,1735749039015,-7878.93,0.00010958,2]
[347382634,1735749039025,-1697.78,0.00010958,2]
[347382636,1735749039033,-500.0,0.00010958,2]
[347382638,1735749039042,-500.0,0.00010958,2]
[347382640,1735749039052,-2216.39,0.00010958,2]
[347382642,1735749039066,-796.83,0.00010958,2]
[347382644,1735749039075,-500.0,0.00010958,2]
[347382646,1735749039084,-500.0,0.00010958,2]
[347382648,1735749039093,-500.0,0.00010958,2]
[347382650,1735749039104,-685.33,0.00010958,2]
[347382652,1735749039113,-1266.69,0.00010958,2]
[347382654,1735749039122,-1657.33,0.00010958,2]
[347382656,1735749039132,-1655.64,0.00010958,2]
[347382658,1735749039144,-500.0,0.00010958,2]
[347382660,1735749039155,-1476.59,0.00010958,2]
[347382662,1735749039164,-500.18632381,0.00010958,2]
[347382664,1735749039173,-500.0,0.00010958,2]
[347382666,1735749039182,-1709.45,0.00010958,2]
[347382668,1735749039191,-500.0,0.00010958,2]
[347382670,1735749039200,-500.0,0.00010958,2]
[347382672,1735749039208,-1968.02,0.00010958,2]
[347382674,1735749039218,-500.0,0.00010958,2]
[347382676,1735749039227,-500.0,0.00010958,2]
[347382677,1735749039237,-500.0,0.00010958,2]
[347382679,1735749039246,-1981.04,0.00010958,2]
[347382681,1735749039256,-888.0,0.00010958,2]
[347382684,1735749039266,-500.0,0.00010958,2]
[347382686,1735749039279,-564.77,0.00010958,2]
[347382688,1735749039289,-500.0,0.00010958,2]
[347382690,1735749039299,-576.08,0.00010958,2]
[347382692,1735749039308,-618.73,0.00010958,2]
[347382694,1735749039317,-1406.68,0.00010958,2]
[347382696,1735749039327,-1729.39,0.00010958,2]
[347382697,1735749039337,-500.0,0.00010958,2]
[347382698,1735749039347,-2416.26,0.00010958,2]
[347382699,1735749039357,-6244.78,0.00010958,2]
[347382700,1735749039366,-638.11,0.00010958,2]
[347382701,1735749039375,-724.53,0.00010958,2]
[347382702,1735749039384,-4568.75,0.00010958,2]
[347382703,1735749039396,-1555.27,0.00010958,2]
[347382704,1735749039405,-500.0,0.00010958,2]
[347382705,1735749039415,-1611.19,0.00010958,2]
[347382706,1735749039426,-500.0,0.00010958,2]
[347382707,1735749039436,-500.0,0.00010958,2]
[347382708,1735749039445,-1024.44,0.00010958,2]
[347382709,1735749039455,-2465.41,0.00010958,2]
[347382711,1735749039465,-10868.49,0.00010958,2]
[347382713,1735749039474,-345.97877456,0.00010958,2]
[347382715,1735749039483,-500.0,0.00010958,2]
[347382717,1735749039492,-557.49,0.00010958,2]
[347382719,1735749039501,-500.0,0.00010958,2]
[347382721,1735749039510,-500.0,0.00010958,2]
[347382723,1735749039520,-1089.93,0.00010958,2]
[347382725,1735749039529,-2494.07,0.00010958,2]
[347382727,1735749039538,-1509.97,0.00010958,2]
[347382728,1735749039548,-500.0,0.00010958,2]
[347382730,1735749039557,-3979.06,0.00010958,2]
[347382732,1735749039566,-1589.25,0.00010958,2]
[347382734,1735749039576,-500.0,0.00010958,2]
[347382736,1735749039585,-1056.63,0.00010958,2]
[347382738,1735749039594,-3972.02,0.00010958,2]
[347382740,1735749039604,-7859.05,0.00010958,2]
[347382742,1735749039614,-5348.27,0.00010958,2]
[347382744,1735749039623,-682.89,0.00010958,2]
[347382746,1735749039632,-500.0,0.00010958,2]
[347382748,1735749039643,-5283.04,0.00010958,2]
[347382750,1735749039653,-2512.24,0.00010958,2]
[347382752,1735749039662,-1183.06,0.00010958,2]
[347382754,1735749039671,-500.0,0.00010958,2]
[347382756,1735749039681,-2672.18,0.00010958,2]
[347382758,1735749039690,-500.0,0.00010958,2]
[347382760,1735749039700,-500.0,0.00010958,2]
[347382762,1735749039710,-506.89,0.00010958,2]
[347382764,1735749039719,-1658.04,0.00010958,2]
[347382766,1735749039728,-2741.14,0.00010958,2]
[347382768,1735749039739,-1050.96,0.00010958,2]
[347382770,1735749039748,-718.35,0.00010958,2]
[347382772,1735749039758,-2455.44,0.00010958,2]
[347382774,1735749039768,-788.84,0.00010958,2]
[347382776,1735749039777,-3660.86,0.00010958,2]
[347382778,1735749039787,-832.86,0.00010958,2]
[347382780,1735749039797,-500.0,0.00010958,2]
[347382782,1735749039806,-500.0,0.00010958,2]
[347382785,1735749039816,-1792.67,0.00010958,2]
[347382786,1735749039826,-13808.63,0.00010958,2]
[347382788,1735749039835,-500.0,0.00010958,2]
[347382791,1735749039845,-559.6,0.00010958,2]
[347382793,1735749039855,-1277.99,0.00010958,2]
[347382795,1735749039866,-2090.94,0.00010958,2]
[347382797,1735749039876,-2188.5,0.00010958,2]
[347382799,1735749039885,-500.0,0.00010958,2]
[347382801,1735749039898,-500.0,0.00010958,2]
[347382803,1735749039907,-3308.27,0.00010958,2]
[347382805,1735749039918,-847.96,0.00010958,2]
[347382807,1735749039927,-1178.4,0.00010958,2]
[347382809,1735749039937,-894.82,0.00010958,2]
[347382811,1735749039946,-1675.85,0.00010958,2]
[347382813,1735749039955,-500.0,0.00010958,2]
[347382815,1735749039964,-500.0,0.00010958,2]
[347382817,1735749039974,-500.0,0.00010958,2]
[347382819,1735749039982,-1560.26,0.00010958,2]
[347382821,1735749039992,-500.0,0.00010958,2]
[347382822,1735749040002,-1627.67,0.00010958,2]
[347382825,1735749040011,-8482.06,0.00010958,2]
[347382826,1735749040020,-770.83,0.00010958,2]
[347382828,1735749040030,-500.0,0.00010958,2]
[347382830,1735749040039,-954.53,0.00010958,2]
[347382832,1735749040048,-783.66,0.00010958,2]
[347382834,1735749040058,-500.0,0.00010958,2]
[347382836,1735749040070,-500.55783534,0.00010958,2]
[347382838,1735749040079,-1134.8,0.00010958,2]
[347382840,1735749040089,-834.93,0.00010958,2]
[347382842,1735749040098,-1564.36,0.00010958,2]
[347382844,1735749040107,-231.02340099,0.00010958,2]
[347382846,1735749040117,-500.0,0.00010958,2]
[347382848,1735749040126,-8573.11,0.00010958,2]
[347382850,1735749040135,-4741.93,0.00010958,2]
[347382852,1735749040148,-876.08,0.00010958,2]
[347382854,1735749040157,-1294.72,0.00010958,2]
[347382856,1735749040166,-3826.75,0.00010958,2]
[347382858,1735749040175,-500.0,0.00010958,2]
[347382860,1735749040184,-4852.96,0.00010958,2]
[347382862,1735749040193,-500.0,0.00010958,2]
[347382864,1735749040202,-517.24,0.00010958,2]
[347382866,1735749040211,-1966.06,0.00010958,2]
[347382868,1735749040221,-448.64552115,0.00010958,2]
[347382870,1735749040230,-500.0,0.00010958,2]
[347382872,1735749040240,-1712.65,0.00010958,2]
[347382874,1735749040249,-811.94,0.00010958,2]
[347382876,1735749040258,-500.0,0.00010958,2]
[347382878,1735749040268,-905.09,0.00010958,2]
[347382880,1735749040279,-1506.18,0.00010958,2]
[347382882,1735749040288,-500.0,0.00010958,2]
[347382884,1735749040298,-1225.7,0.00010958,2]
[347382886,1735749040307,-500.0,0.00010958,2]
[347382888,1735749040316,-2428.68,0.00010958,2]
[347382890,1735749040326,-500.0,0.00010958,2]
[347382892,1735749040336,-500.0,0.00010958,2]
[347382894,1735749040346,-500.0,0.00010958,2]
[347382896,1735749040356,-695.67,0.00010958,2]
[347382898,1735749040365,-500.0,0.00010958,2]
[347382900,1735749040374,-500.0,0.00010958,2]
[347382902,1735749040384,-500.0,0.00010958,2]
[347382904,1735749040396,-500.0,0.00010958,2]
[347382906,1735749040406,-2917.15,0.00010958,2]
[347382908,1735749040414,-1435.03,0.00010958,2]
[347382910,1735749040424,-2216.74,0.00010958,2]
[347382912,1735749040433,-500.0,0.00010958,2]
[347382914,1735749040442,-500.0,0.00010958,2]
[347382916,1735749040452,-2032.74,0.00010958,2]
[347382918,1735749040461,-4918.5,0.00010958,2]
[347382920,1735749040470,-700.64,0.00010958,2]
[347382922,1735749040479,-500.0,0.00010958,2]
[347382924,1735749040488,-1178.87,0.00010958,2]
[347382926,1735749040498,-557.19,0.00010958,2]
[347382928,1735749040507,-500.0,0.00010958,2]
[347382930,1735749040516,-1636.83,0.00010958,2]
[347382932,1735749040526,-1229.12,0.00010958,2]
[347382934,1735749040535,-756.98,0.00010958,2]
[347382936,1735749040544,-200.0,0.00010959,2]
[347382938,1735749040553,-7440.0,0.00010959,2]
[347382940,1735749040563,-166.42052484,0.00010973,2]
[347382942,1735749040573,-500.0,0.00010973,2]
[347382944,1735749040582,-500.0,0.00010973,2]
[347382946,1735749040591,-151.9419225,0.00010973,2]
[347382948,1735749040600,-500.85822845,0.00010973,2]
[347382950,1735749040609,-179.96193575,0.00010973,2]
[347382952,1735749040619,-161.54019417,0.00010973,2]
[347382954,1735749040632,-500.0,0.00010973,2]
[347382957,1735749040643,-500.0,0.00010973,2]
[347382959,1735749040653,-158.88092276,0.00010973,2]
[347382961,1735749040662,-160.45607901,0.00010973,2]
[347382962,1735749040672,-227.2603201,0.00010973,2]
[347382964,1735749040681,-500.0,0.00010973,2]
[347382966,1735749040690,-275.95985761,0.00010973,2]
[347382968,1735749040699,-105303.68205859,0.0001098,2]
[347383037,1735749041360,-437.7779378,0.0001098,2]
[347383039,1735749041371,-348.89010204,0.0001098,2]
[347383043,1735749041397,-1204.56856532,0.0001098,2]
[347383045,1735749041408,-604.32310367,0.0001098,2]
[347383047,1735749041420,-692.77500015,0.0001098,2]
[347383050,1735749041432,-6152.05092008,0.0001098,2]
[347383052,1735749041443,-1292.5814419,0.0001098,2]
[347383054,1735749041455,-9998.0,0.0001098,2]
[347383056,1735749041467,-1951.1632492,0.0001098,2]
[347383059,1735749041479,-4840.72047788,0.0001098,2]
[347383061,1735749041490,-450.0,0.0001098,2]
[347383064,1735749041508,-792.44969753,0.0001098,2]
[347383067,1735749041526,-26804.27722311,0.0001098,2]
[347383272,1735749043305,-500.0,0.00010958,2]
[347383274,1735749043315,-500.0,0.00010958,2]
[347383277,1735749043326,-500.000001,0.00010958,2]
[347383279,1735749043335,-500.0,0.00010958,2]
[347383281,1735749043345,-1381.22978017,0.00010958,2]
[347383284,1735749043365,-339.30021983,0.00010958,2]
[347383286,1735749043375,-500.0,0.00010958,2]
[347383288,1735749043384,-500.0,0.00010958,2]
[347383290,1735749043394,-500.0,0.00010958,2]
[347383291,1735749043403,-500.0,0.00010958,2]
[347383293,1735749043413,-302.52415747,0.00010973,2]
[347383295,1735749043422,-88616.59827033,0.0001098,2]
[347383297,1735749043432,-251.57058194,0.00010986,2]
[347383299,1735749043442,-280.09917614,0.00010986,2]
[347383301,1735749043451,-175.31030912,0.00010986,2]
[347383304,1735749043461,-150.0,0.00010986,2]
[347383305,1735749043470,-5416.0,0.00010986,2]
[347383307,1735749043480,-400.0,0.00010986,2]
[347383310,1735749043489,-1265.0,0.00010999,2]
[347383312,1735749043498,-150.0,0.00010999,2]
[347383313,1735749043508,-500.0,0.00010999,2]
[347383315,1735749043517,-711.9,0.00010999,2]
[347383318,1735749043526,-1220.13,0.00010999,2]
[347383320,1735749043536,-500.0,0.00010999,2]
[347383321,1735749043545,-500.0,0.00010999,2]
[347383324,1735749043555,-500.0,0.00010999,2]
[347383325,1735749043564,-500.0,0.00010999,2]
[347383328,1735749043574,-500.0,0.00010999,2]
[347383330,1735749043584,-346.11751151,0.00010999,2]
[347383332,1735749043593,-500.0,0.00010999,2]
[347383334,1735749043602,-500.0,0.00010999,2]
[347383336,1735749043612,-500.0,0.00010999,2]
[347383338,1735749043621,-500.0,0.00010999,2]
[347383339,1735749043631,-500.0,0.00010999,2]
[347383342,1735749043642,-500.0,0.00010999,2]
[347383344,1735749043653,-500.0,0.00010999,2]
[347383346,1735749043663,-500.0,0.00010999,2]
[347383348,1735749043674,-500.0,0.00010999,2]
[347383350,1735749043684,-500.0,0.00010999,2]
[347383352,1735749043694,-635.96,0.00010999,2]
[347383354,1735749043704,-500.0,0.00010999,2]
[347383356,1735749043714,-500.0,0.00010999,2]
[347383358,1735749043723,-500.0,0.00010999,2]
[347383360,1735749043733,-500.0,0.00010999,2]
[347383362,1735749043742,-1612.81,0.00010999,2]
[347383364,1735749043751,-500.0,0.00010999,2]
[347383366,1735749043761,-184.46943378,0.00010999,2]
[347383368,1735749043770,-500.0,0.00010999,2]
[347383370,1735749043780,-500.0,0.00010999,2]
[347383372,1735749043790,-565.07,0.00010999,2]
[347383374,1735749043799,-500.0,0.00010999,2]
[347383376,1735749043808,-500.0,0.00010999,2]
[347383378,1735749043817,-500.0,0.00010999,2]
[347383380,1735749043827,-606.69,0.00010999,2]
[347383382,1735749043836,-500.0,0.00010999,2]
[347383384,1735749043845,-520.04,0.00010999,2]
[347383386,1735749043855,-1039.82,0.00010999,2]
[347383388,1735749043865,-500.0,0.00010999,2]
[347383390,1735749043874,-694.85,0.00010999,2]
[347383392,1735749043883,-500.0,0.00010999,2]
[347383394,1735749043894,-542.48,0.00010999,2]
[347383396,1735749043904,-841.17,0.00010999,2]
[347383398,1735749043913,-500.0,0.00010999,2]
[347383400,1735749043923,-1092.22,0.00010999,2]
[347383402,1735749043932,-500.0,0.00010999,2]
[347383404,1735749043942,-500.0,0.00010999,2]
[347383406,1735749043951,-500.0,0.00010999,2]
[347383408,1735749043960,-642.11,0.00010999,2]
[347383410,1735749043970,-500.0,0.00010999,2]
[347383412,1735749043980,-500.0,0.00010999,2]
[347383414,1735749043989,-500.0,0.00010999,2]
[347383416,1735749043999,-549.88,0.00010999,2]